bitfinex/quotes_BTCUSD_20250723
["timestamp","ask_amount","ask_price","bid_price","bid_amount"]
[1753303173620,0.74302053,117870.0,117860.0,0.025488]
[1753303173869,0.00794076,117860.0,117850.0,0.6329826]
[1753303174763,0.15630076,117860.0,117850.0,0.6340526]
[1753303174992,0.15634994,117860.0,117850.0,0.6329826]
[1753303175222,0.16503511,117860.0,117850.0,0.6329826]
[1753303175451,0.15709435,117860.0,117850.0,0.6329826]
[1753303175680,0.14844918,117860.0,117850.0,0.6329826]
[1753303175913,0.14844918,117860.0,117850.0,0.2080466]
[1753303176154,0.15159918,117860.0,117850.0,0.6369826]
[1753303176661,0.16856745,117860.0,117850.0,0.2080466]
[1753303176887,0.38973314,117860.0,117850.0,0.0044]
[1753303177110,0.42023314,117860.0,117850.0,0.0044]
[1753303177574,0.76023314,117860.0,117850.0,0.0044]
[1753303178033,0.92768216,117860.0,117850.0,0.0024]
[1753303178290,0.92768216,117860.0,117850.0,0.0004]
[1753303178509,0.92664216,117860.0,117850.0,0.0004]
[1753303178942,1.07664216,117860.0,117850.0,0.0004]
[1753303179879,1.1056648,117860.0,117850.0,0.0004]
[1753303180103,1.07704216,117860.0,117850.0,0.0004]
[1753303180860,1.22323622,117860.0,117850.0,0.0004]
[1753303181819,1.22527622,117860.0,117850.0,0.0004]
[1753303182328,1.25389886,117860.0,117850.0,0.0004]
[1753303183646,1.22527622,117860.0,117850.0,0.0004]
[1753303184624,1.1916621,117860.0,117850.0,0.0004]
[1753303184850,1.16303946,117860.0,117850.0,0.0004]
[1753303185774,1.21679946,117860.0,117850.0,0.17859261]
[1753303186023,1.20037442,117860.0,117850.0,0.00888536]
[1753303186260,1.05217442,117860.0,117850.0,0.1870779]
[1753303186490,1.14471518,117860.0,117850.0,0.19556304]
[1753303186710,1.14471518,117860.0,117850.0,0.17859261]
[1753303186912,1.14471518,117860.0,117850.0,0.1870779]
[1753303187126,1.14471518,117860.0,117850.0,0.19556304]
[1753303187389,1.14471518,117860.0,117850.0,0.0004]
[1753303187605,0.99671518,117860.0,117850.0,0.17859261]
[1753303187819,1.14455518,117860.0,117850.0,0.19556311]
[1753303187995,1.13607069,117860.0,117850.0,0.0004]
[1753303188187,1.22054799,117860.0,117850.0,0.17859254]
[1753303188391,1.22054799,117860.0,117850.0,0.18707768]
[1753303188854,1.07270799,117860.0,117850.0,0.0004]
[1753303188980,1.13607069,117860.0,117850.0,0.18707775]
[1753303189181,1.13607069,117860.0,117850.0,0.17859254]
[1753303189403,1.13607069,117860.0,117850.0,0.17859261]
[1753303189637,1.13607069,117860.0,117850.0,0.19556311]
[1753303189849,1.13607069,117860.0,117850.0,0.1870779]
[1753303190104,1.13607069,117860.0,117850.0,0.19556311]
[1753303190310,1.13607069,117860.0,117850.0,0.0004]
[1753303190732,1.33599799,117860.0,117850.0,0.0004]
[1753303190955,1.28504799,117860.0,117850.0,0.0004]
[1753303191362,1.71398399,117860.0,117850.0,0.0004]
[1753303191897,1.28504799,117860.0,117850.0,0.0004]
[1753303192016,1.74260663,117860.0,117850.0,0.0004]
[1753303192228,1.71398399,117860.0,117850.0,0.0004]
[1753303192444,1.31367063,117860.0,117850.0,0.0004]
[1753303193088,1.31315063,117860.0,117850.0,0.0004]
[1753303193977,1.74208663,117860.0,117850.0,0.0004]
[1753303194201,1.89208663,117860.0,117850.0,0.0004]
[1753303194425,1.94302663,117860.0,117850.0,0.0004]
[1753303194642,1.94302663,117860.0,117790.0,0.68431249]
[1753303194643,0.18674939,117810.0,117790.0,0.68431249]
[1753303194862,0.18674939,117810.0,117790.0,0.23346588]
[1753303194863,0.00794076,117800.0,117790.0,0.23346588]
[1753303195098,0.15526076,117800.0,117790.0,0.66411188]
[1753303195323,0.16374907,117800.0,117790.0,0.66411188]
[1753303195547,0.15526076,117800.0,117790.0,0.23517588]
[1753303195799,0.1859167,117800.0,117790.0,0.24195571]
[1753303195995,0.21283509,117800.0,117790.0,0.24195571]
[1753303196205,0.16898252,117800.0,117790.0,0.24195571]
[1753303196431,1.10615392,117800.0,117790.0,0.21652683]
[1753303196644,1.09766554,117800.0,117790.0,0.03824352]
[1753303196854,1.08917694,117800.0,117790.0,0.03824352]
[1753303197061,1.17365424,117800.0,117790.0,0.03824352]
[1753303198798,1.20575424,117800.0,117790.0,0.03824352]
[1753303199023,1.17365424,117800.0,117790.0,0.03824352]
[1753303199725,1.41231424,117800.0,117790.0,0.03824352]
[1753303199922,1.59267424,117800.0,117790.0,0.03824352]
[1753303200385,1.36083694,117800.0,117790.0,0.20803722]
[1753303200602,0.2119041,117800.0,117790.0,0.66415133]
[1753303200813,0.3592641,117800.0,117790.0,0.69695133]
[1753303201245,0.3592641,117800.0,117790.0,0.72925133]
[1753303201486,0.36775241,117800.0,117790.0,0.72925133]
[1753303201696,1.06016568,117800.0,117790.0,0.03824352]
[1753303201912,1.1385147,117800.0,117790.0,0.03824352]
[1753303202134,0.00794076,117780.0,117770.0,0.19027464]
[1753303202352,0.0095446,117780.0,117770.0,0.62092064]
[1753303202567,0.15530076,117780.0,117770.0,0.62092064]
[1753303202790,0.15530076,117780.0,117770.0,0.68589064]
[1753303203008,0.15530076,117780.0,117770.0,0.68482064]
[1753303203231,0.18926063,117780.0,117770.0,0.68482064]
[1753303203444,0.36419932,117780.0,117770.0,0.16480322]
[1753303203664,0.36419932,117780.0,117760.0,0.16979774]
[1753303203665,0.1862542,117770.0,117760.0,0.16979774]
[1753303203881,0.02492336,117760.0,117750.0,0.23705406]
[1753303204108,0.16379195,117760.0,117750.0,0.20746406]
[1753303204325,0.16539579,117760.0,117750.0,0.63640006]
[1753303204540,0.1569046,117760.0,117750.0,0.63640006]
[1753303204792,0.1738872,117760.0,117750.0,0.63640006]
[1753303205001,0.16379195,117760.0,117750.0,0.64040006]
[1753303205222,0.19087017,117760.0,117750.0,0.21195292]
[1753303205485,0.22475795,117760.0,117750.0,0.21195292]
[1753303205736,0.23324965,117760.0,117750.0,0.21195292]
[1753303205934,0.68725089,117760.0,117750.0,0.19335273]
[1753303206144,0.84574273,117760.0,117750.0,0.19335266]
[1753303206371,0.84574273,117760.0,117750.0,0.20184501]
[1753303206588,0.76038251,117760.0,117750.0,0.21882935]
[1753303206812,0.84574216,117760.0,117750.0,0.21233729]
[1753303207023,0.82875941,117760.0,117750.0,0.01300886]
[1753303207234,0.82875941,117760.0,117750.0,0.18935266]
[1753303207478,0.90474501,117760.0,117750.0,0.01200886]
[1753303207706,0.90474501,117760.0,117750.0,0.01300886]
[1753303207927,1.36827133,117760.0,117750.0,0.01300886]
[1753303208673,0.02548094,117730.0,117720.0,0.66038755]
[1753303208895,0.34096194,117730.0,117720.0,0.04506116]
[1753303209123,0.72268418,117730.0,117720.0,0.21495582]
[1753303209343,0.68729886,117730.0,117720.0,0.23194506]
[1753303209560,0.68729886,117730.0,117720.0,0.21495582]
[1753303209800,0.50892441,117730.0,117720.0,0.24043936]
[1753303210014,0.50892426,117730.0,117720.0,0.24893358]
[1753303210240,0.35307076,117730.0,117720.0,0.67957958]
[1753303210463,0.15534076,117730.0,117720.0,0.67957958]
[1753303210692,0.1474,117730.0,117720.0,0.67957958]
[1753303210915,0.15534076,117730.0,117720.0,0.71167958]
[1753303211187,0.18147834,117730.0,117720.0,0.66259106]
[1753303211404,0.21047076,117730.0,117720.0,0.67957972]
[1753303211631,0.20534076,117730.0,117720.0,0.67957972]
[1753303211879,0.05794076,117730.0,117720.0,0.67957972]
[1753303212122,0.1974,117730.0,117720.0,0.74424972]
[1753303212329,0.20534076,117730.0,117720.0,0.74424972]
[1753303212549,0.15530076,117740.0,117730.0,0.19536138]
[1753303212777,0.15530076,117740.0,117730.0,0.68877738]
[1753303213001,0.00849127,117760.0,117750.0,0.19532821]
[1753303213245,0.18241876,117760.0,117750.0,0.62597421]
[1753303213470,0.50594203,117760.0,117750.0,0.62597421]
[1753303213728,0.53141662,117760.0,117750.0,0.19703821]
[1753303213961,0.51443337,117760.0,117750.0,0.19703821]
[1753303214191,0.58699992,117760.0,117750.0,0.62597421]
[1753303214424,0.50896203,117760.0,117750.0,0.19703821]
[1753303214665,0.53443655,117760.0,117750.0,0.19532835]
[1753303214882,0.51745344,117760.0,117750.0,0.63275641]
[1753303215114,0.49253,117760.0,117750.0,0.63446641]
[1753303215336,0.15534076,117760.0,117750.0,0.63446641]
[1753303215557,0.15534076,117760.0,117750.0,0.66666641]
[1753303215794,0.15734076,117760.0,117750.0,0.66666641]
[1753303216018,0.1474,117760.0,117750.0,0.66666641]
[1753303216245,0.15534076,117760.0,117750.0,0.66666641]
[1753303216468,0.15534076,117760.0,117750.0,0.66766641]
[1753303216691,0.1569446,117760.0,117750.0,0.63546641]
[1753303216913,0.1569446,117760.0,117750.0,0.20653041]
[1753303217164,0.24142346,117760.0,117750.0,0.63546641]
[1753303217395,0.41478657,117760.0,117750.0,0.18783615]
[1753303217645,0.24494962,117760.0,117750.0,0.20482034]
[1753303217871,0.42327841,117760.0,117750.0,0.19632828]
[1753303218305,0.23645792,117760.0,117750.0,0.20482034]
[1753303218539,0.18594521,117760.0,117750.0,0.20482034]
[1753303218788,0.01307076,117760.0,117750.0,0.20482034]
[1753303219018,0.15534076,117760.0,117750.0,0.63546634]
[1753303219439,0.15534076,117760.0,117750.0,0.66676634]
[1753303219906,0.1474,117760.0,117750.0,0.66676634]
[1753303220129,0.15534076,117760.0,117750.0,0.69796634]
[1753303220556,0.1494,117760.0,117750.0,0.69903634]
[1753303220765,0.1494,117760.0,117750.0,1.12797234]
[1753303221001,0.002,117760.0,117750.0,1.27533234]
[1753303221299,0.15530076,117770.0,117760.0,0.25781161]
[1753303221492,0.00794076,117770.0,117760.0,0.68845761]
[1753303221706,0.15530076,117770.0,117760.0,0.68845761]
[1753303221919,0.15530076,117770.0,117760.0,0.68952761]
[1753303222359,0.00794076,117770.0,117760.0,0.68952761]
[1753303222596,0.00794076,117770.0,117760.0,0.69002119]
[1753303222813,0.00794076,117770.0,117760.0,0.68895119]
[1753303223027,0.00894076,117770.0,117760.0,0.83631119]
[1753303223451,0.00794076,117770.0,117760.0,0.83631119]
[1753303223672,0.001,117770.0,117760.0,0.92485849]
[1753303224153,0.00794076,117780.0,117770.0,0.25799503]
[1753303224375,0.00794076,117780.0,117770.0,0.68864103]
[1753303224830,0.22468478,117790.0,117780.0,0.19527845]
[1753303225043,0.23317396,117790.0,117780.0,0.62592445]
[1753303225271,0.15705724,117790.0,117780.0,0.62592445]
[1753303225488,0.15705724,117790.0,117780.0,0.65872445]
[1753303225926,0.00175648,117790.0,117780.0,0.69122445]
[1753303226158,0.00969724,117790.0,117780.0,0.83961445]
[1753303226368,0.00969724,117790.0,117780.0,0.69229445]
[1753303226583,0.00969724,117790.0,117780.0,0.83854445]
[1753303226836,0.00969724,117790.0,117780.0,0.69122445]
[1753303227029,0.00969724,117790.0,117780.0,0.77324445]
[1753303227686,0.00969724,117790.0,117780.0,0.80514445]
[1753303227895,0.00175648,117790.0,117780.0,0.83654445]
[1753303228339,0.00969724,117790.0,117780.0,0.83654445]
[1753303229866,0.00969724,117790.0,117780.0,0.83754445]
[1753303230585,0.00969724,117790.0,117780.0,0.83854445]
[1753303231473,0.02331634,117790.0,117780.0,0.77520445]
[1753303231701,0.03180559,117790.0,117780.0,0.62621445]
[1753303231928,0.01482724,117790.0,117780.0,0.77349445]
[1753303232153,0.01482724,117790.0,117780.0,0.77520445]
[1753303232367,0.00969724,117790.0,117780.0,0.77520445]
[1753303232610,0.00969724,117790.0,117780.0,0.62792445]
[1753303232824,0.00969724,117790.0,117780.0,0.77520445]
[1753303233500,0.00969724,117790.0,117780.0,0.84070445]
[1753303233733,0.00969724,117790.0,117780.0,0.41176845]
[1753303233969,0.00969724,117790.0,117780.0,0.77520445]
[1753303234665,0.00969724,117790.0,117780.0,0.62792445]
[1753303235130,0.00969724,117790.0,117780.0,0.19898845]
[1753303235350,0.00969724,117790.0,117780.0,0.62792445]
[1753303236010,0.02667545,117790.0,117780.0,0.62792445]
[1753303236233,0.03164552,117790.0,117780.0,0.62621445]
[1753303236465,0.03164545,117790.0,117780.0,0.62621445]
[1753303236962,0.24203282,117790.0,117780.0,0.002]
[1753303237166,0.4127398,117790.0,117780.0,0.002]
[1753303237388,0.51466612,117790.0,117780.0,0.002]
[1753303238070,0.20323536,117770.0,117760.0,0.13082223]
[1753303238284,0.37592532,117770.0,117760.0,0.1788223]
[1753303238496,0.16860123,117770.0,117760.0,0.62474119]
[1753303238699,0.17709185,117770.0,117760.0,0.62474119]
[1753303238915,0.17709192,117770.0,117760.0,0.62474119]
[1753303239126,0.18558268,117770.0,117760.0,0.62474119]
[1753303239327,0.19407366,117770.0,117760.0,0.62474119]
[1753303239553,0.36389684,117770.0,117760.0,0.62474163]
[1753303239760,0.34691539,117770.0,117760.0,0.42942958]
[1753303239977,0.41131539,117770.0,117760.0,0.59926653]
[1753303240185,0.41131539,117770.0,117760.0,0.42942958]
[1753303240403,0.41131539,117770.0,117760.0,0.59926653]
[1753303240620,0.41131539,117770.0,117760.0,0.60775837]
[1753303240831,0.40282441,117770.0,117760.0,0.43792142]
[1753303241044,0.40282441,117770.0,117760.0,0.42942958]
[1753303241271,0.46008894,117770.0,117760.0,0.42942958]
[1753303241547,0.46008894,117770.0,117760.0,0.00049358]
[1753303241816,0.46008894,117770.0,117760.0,0.42942958]
[1753303242054,0.46008894,117770.0,117760.0,0.59926653]
[1753303242288,0.46008894,117770.0,117760.0,0.00049358]
[1753303242529,0.46008894,117770.0,117760.0,0.42942958]
[1753303242954,0.40417985,117770.0,117760.0,0.42942958]
[1753303243172,0.17709236,117770.0,117760.0,0.61625014]
[1753303243380,0.35540587,117770.0,117760.0,0.43792142]
[1753303243602,0.35540587,117770.0,117760.0,0.42942958]
[1753303243815,0.34691518,117770.0,117760.0,0.42942958]
[1753303244023,0.40183879,117770.0,117760.0,0.42942958]
[1753303244451,0.39334788,117770.0,117760.0,0.59926653]
[1753303244661,0.33842427,117770.0,117760.0,0.61625007]
[1753303244867,0.35540608,117770.0,117760.0,0.63323325]
[1753303245084,0.17709207,117770.0,117760.0,0.64172466]
[1753303245325,0.17709207,117770.0,117760.0,0.64343416]
[1753303245326,0.00794076,117770.0,117760.0,0.64343416]
[1753303245537,0.03365648,117790.0,117770.0,0.19529503]
[1753303245538,0.15506076,117780.0,117770.0,0.19529503]
[1753303245769,0.17205079,117780.0,117770.0,0.62594103]
[1753303245998,0.15506076,117780.0,117770.0,0.62594103]
[1753303246225,0.00794076,117780.0,117770.0,0.62594103]
[1753303246440,0.16355058,117780.0,117770.0,0.62594103]
[1753303246676,0.16355058,117780.0,117770.0,0.19700503]
[1753303246893,0.18710472,117780.0,117770.0,0.62423103]
[1753303247115,0.18550088,117780.0,117770.0,0.62423103]
[1753303247337,0.17701062,117780.0,117770.0,0.62423103]
[1753303247563,0.16852058,117780.0,117770.0,0.62594103]
[1753303247777,0.15506076,117780.0,117770.0,0.62594103]
[1753303248443,0.16355058,117780.0,117770.0,0.62594103]
[1753303248664,0.15506076,117780.0,117770.0,0.62594103]
[1753303248893,0.01268724,117790.0,117780.0,0.19527845]
[1753303249130,0.14887648,117790.0,117780.0,0.62592445]
[1753303249362,0.14887648,117790.0,117780.0,0.68862445]
[1753303249635,0.00175648,117790.0,117780.0,0.77417175]
[1753303249860,0.00175648,117790.0,117780.0,1.61073529]
[1753303250074,0.00275648,117790.0,117780.0,1.11417175]
[1753303250520,0.00175648,117790.0,117780.0,1.11417175]
[1753303251220,0.00175648,117790.0,117780.0,1.11717175]
[1753303251439,0.00175648,117790.0,117780.0,1.12117175]
[1753303251662,0.00175648,117790.0,117780.0,1.26825175]
[1753303256573,0.00175648,117790.0,117780.0,1.12117175]
[1753303256808,0.00175648,117790.0,117780.0,1.26821175]
[1753303257043,1e-08,117790.0,117780.0,0.83923575]
[1753303257313,1e-08,117790.0,117780.0,1.74710775]
[1753303257793,1e-08,117790.0,117780.0,1.78516699]
[1753303258280,1e-08,117790.0,117780.0,1.79961601]
[1753303258727,1e-08,117790.0,117780.0,0.94614401]
[1753303259647,0.55934076,117840.0,117830.0,0.19519559]
[1753303259648,0.5514,117840.0,117830.0,0.19519559]
[1753303259866,0.55934076,117840.0,117830.0,0.62584159]
[1753303260088,0.55934076,117840.0,117830.0,0.19690559]
[1753303260333,0.56431076,117840.0,117830.0,0.17822279]
[1753303260597,0.62661076,117840.0,117830.0,0.1867093]
[1753303260846,0.62693076,117840.0,117830.0,0.19519559]
[1753303263025,0.4002,117840.0,117830.0,0.62598921]
[1753303263498,0.4002,117840.0,117830.0,0.65928921]
[1753303263724,0.4002,117840.0,117830.0,0.28153051]
[1753303263963,0.4002,117840.0,117830.0,0.71046651]
[1753303266100,0.4002,117840.0,117830.0,0.62427921]
[1753303266101,0.47696076,117840.0,117830.0,0.62427921]
[1753303266298,0.58367477,117840.0,117830.0,0.19534321]
[1753303266558,0.49195198,117840.0,117830.0,0.19534321]
[1753303267025,0.47498076,117840.0,117830.0,0.62427921]
[1753303267260,0.42872978,117840.0,117830.0,0.62427921]
[1753303267492,0.42078902,117840.0,117830.0,0.62427921]
[1753303268167,0.41128076,117840.0,117830.0,0.62427921]
[1753303268879,0.41128076,117840.0,117830.0,0.19534321]
[1753303269102,0.41128076,117840.0,117830.0,0.62427921]
[1753303269325,0.4002,117840.0,117830.0,0.62427921]
[1753303269545,0.5518,117840.0,117830.0,0.62427921]
[1753303269770,0.5518,117840.0,117830.0,0.70875651]
[1753303271833,0.5518,117840.0,117830.0,0.71046651]
[1753303272076,0.5518,117840.0,117830.0,0.74216651]
[1753303272298,0.5518,117840.0,117830.0,0.77456651]
[1753303273043,0.5518,117840.0,117830.0,0.71046651]
[1753303273547,0.55692,117840.0,117830.0,0.71046651]
[1753303274265,0.55692,117840.0,117830.0,0.70875651]
[1753303275779,0.55692,117840.0,117830.0,0.71046651]
[1753303275780,0.5518,117840.0,117830.0,0.71046651]
[1753303276689,0.4002,117840.0,117830.0,0.77263651]
[1753303276899,0.55112,117840.0,117830.0,0.77263651]
[1753303277121,0.4002,117840.0,117830.0,1.11263651]
[1753303277831,0.4002,117840.0,117830.0,0.68263051]
[1753303278054,0.4002,117840.0,117830.0,1.11156651]
[1753303278269,0.4002,117840.0,117830.0,1.11356651]
[1753303278509,0.4002,117840.0,117830.0,0.62182051]
[1753303278510,0.457402,117840.0,117830.0,0.62182051]
[1753303278733,0.49250487,117840.0,117830.0,0.28182059]
[1753303278959,0.52930276,117840.0,117830.0,0.19934343]
[1753303279182,0.75041645,117840.0,117830.0,0.18237048]
[1753303279378,0.56372329,117840.0,117830.0,0.18885677]
[1753303279623,0.56372329,117840.0,117830.0,0.19734314]
[1753303279849,0.49132978,117840.0,117830.0,0.19834306]
[1753303280306,0.50830086,117840.0,117830.0,0.19834306]
[1753303280527,0.50830086,117840.0,117830.0,0.19734306]
[1753303280755,0.51678672,117840.0,117830.0,0.19734306]
[1753303280974,0.52527258,117840.0,117830.0,0.19534306]
[1753303281201,0.60736966,117840.0,117830.0,0.19534306]
[1753303281391,0.59888373,117840.0,117830.0,0.19534306]
[1753303281701,0.60736966,117840.0,117830.0,0.19534306]
[1753303281920,0.59237794,117840.0,117830.0,0.19534306]
[1753303282151,0.51876658,117840.0,117830.0,0.19534306]
[1753303282381,0.52725251,117840.0,117830.0,0.19934306]
[1753303282615,0.52725251,117840.0,117830.0,0.19534306]
[1753303282863,0.43050978,117840.0,117830.0,0.62427906]
[1753303283092,0.4,117840.0,117830.0,0.62427906]
[1753303283321,0.40794076,117840.0,117830.0,0.62427906]
[1753303283551,0.55902076,117840.0,117830.0,0.62427906]
[1753303283802,0.15108,117840.0,117830.0,0.62427906]
[1753303284024,0.01108076,117850.0,117840.0,0.19517902]
[1753303284254,0.16232076,117850.0,117840.0,0.62411502]
[1753303284482,0.01108076,117860.0,117850.0,0.19516246]
[1753303284711,0.01108076,117860.0,117850.0,0.62409846]
[1753303284938,0.16228076,117860.0,117850.0,0.62409846]
[1753303286315,0.16228076,117860.0,117850.0,0.19516246]
[1753303286602,0.16228076,117860.0,117850.0,0.62409846]
[1753303286829,0.23714873,117860.0,117850.0,0.62409846]
[1753303287064,0.25251373,117860.0,117850.0,0.18667761]
[1753303287290,0.24402924,117860.0,117850.0,0.19516246]
[1753303287515,0.2440291,117860.0,117850.0,0.19516246]
[1753303287744,0.22706076,117860.0,117850.0,0.19516246]
[1753303288474,0.24402924,117860.0,117850.0,0.19516246]
[1753303288700,0.49037748,117860.0,117850.0,0.19516275]
[1753303288942,0.08084902,117850.0,117840.0,0.19517815]
[1753303289170,0.09291786,117850.0,117840.0,0.19517815]
[1753303289400,0.00794076,117840.0,117830.0,0.17837005]
[1753303289636,0.25323521,117840.0,117830.0,0.20382971]
[1753303289866,0.26172078,117840.0,117830.0,0.20382971]
[1753303290301,0.26172071,117840.0,117830.0,0.20382971]
[1753303290964,0.24474978,117840.0,117830.0,0.63276571]
[1753303291172,0.26172086,117840.0,117830.0,0.63276571]
[1753303291393,0.26172086,117840.0,117830.0,0.20382971]
[1753303291615,0.25323521,117840.0,117830.0,0.20382971]
[1753303292314,0.24474978,117840.0,117830.0,0.20382971]
[1753303292777,0.25323528,117840.0,117830.0,0.20382971]
[1753303292998,0.27020672,117840.0,117830.0,0.20382971]
[1753303293223,0.24474978,117840.0,117830.0,0.19534321]
[1753303293463,0.25323521,117840.0,117830.0,0.19534321]
[1753303293690,0.27020628,117840.0,117830.0,0.62427921]
[1753303294150,0.28717851,117840.0,117830.0,0.19534329]
[1753303294387,0.45690074,117840.0,117830.0,0.18685692]
[1753303294607,0.51755151,117840.0,117830.0,0.19534336]
[1753303294832,0.261721,117840.0,117830.0,0.20382965]
[1753303295324,0.2786928,117840.0,117830.0,0.21231602]
[1753303295568,0.25323521,117840.0,117830.0,0.21231602]
[1753303295803,0.24474978,117840.0,117830.0,0.21231602]
[1753303296015,0.27020664,117840.0,117830.0,0.21231602]
[1753303296237,0.26172085,117840.0,117830.0,0.21231602]
[1753303296707,0.2786925,117840.0,117830.0,0.21231602]
[1753303296974,0.2786925,117840.0,117830.0,0.20382965]
[1753303297188,0.30977136,117840.0,117830.0,0.20382965]
[1753303297415,0.2786925,117840.0,117830.0,0.20382965]
[1753303297651,0.51592038,117840.0,117830.0,0.00014762]
[1753303298766,0.51692038,117840.0,117830.0,0.00014762]
[1753303299906,0.85692038,117840.0,117830.0,0.00014762]
[1753303300196,0.94139768,117840.0,117830.0,0.00014762]
[1753303301192,0.94239768,117840.0,117830.0,0.00014762]
[1753303301846,0.70708038,117840.0,117830.0,0.16988368]
[1753303302086,0.70708038,117840.0,117830.0,0.18685692]
[1753303302311,0.19039791,117840.0,117830.0,0.69190675]
[1753303302745,0.21633294,117840.0,117830.0,0.69190675]
[1753303302973,0.37756945,117840.0,117830.0,0.2544846]
[1753303303218,0.37756945,117840.0,117830.0,0.00014762]
[1753303303219,0.47817481,117840.0,117830.0,0.00014762]
[1753303303441,0.59585211,117840.0,117830.0,0.00014762]
[1753303306218,0.51137481,117840.0,117830.0,0.00014762]
[1753303306450,0.36149481,117840.0,117830.0,0.16988368]
[1753303306692,0.44503481,117840.0,117830.0,0.16988368]
[1753303306926,0.44503481,117840.0,117830.0,0.17837048]
[1753303307223,0.50813481,117840.0,117830.0,0.00014762]
[1753303308101,0.50813481,117840.0,117830.0,0.17837048]
[1753303308362,0.42365729,117840.0,117830.0,0.19534379]
[1753303308577,0.04948086,117840.0,117830.0,0.21231652]
[1753303308807,0.20917042,117840.0,117830.0,0.21231652]
[1753303309033,0.21605236,117840.0,117830.0,0.21231652]
[1753303309249,0.38577401,117840.0,117830.0,0.20383023]
[1753303309499,0.37728858,117840.0,117830.0,0.2038303]
[1753303309739,0.36880308,117840.0,117830.0,0.2038303]
[1753303309954,0.36031736,117840.0,117830.0,0.00014762]
[1753303310167,0.35183143,117840.0,117830.0,0.17837048]
[1753303310615,0.35183143,117840.0,117830.0,0.00014762]
[1753303310884,0.50060873,117840.0,117830.0,0.00014762]
[1753303311094,0.58508603,117840.0,117830.0,0.00014762]
[1753303311979,0.50060873,117840.0,117830.0,0.00014762]
[1753303312873,0.50060873,117840.0,117830.0,0.17837048]
[1753303313106,0.36852323,117840.0,117830.0,0.19534343]
[1753303313317,0.20728715,117840.0,117830.0,0.20382972]
[1753303313567,0.20728707,117840.0,117830.0,0.20382972]
[1753303314430,0.18182978,117840.0,117830.0,0.20553972]
[1753303314651,0.18182978,117840.0,117830.0,0.63447572]
[1753303314652,0.02738978,117840.0,117830.0,0.63447572]
[1753303314911,0.17670978,117840.0,117830.0,0.66527572]
[1753303315120,0.18506928,117840.0,117830.0,0.23633972]
[1753303315340,0.18506921,117840.0,117830.0,0.63447572]
[1753303315567,0.18463721,117840.0,117830.0,0.20553972]
[1753303315746,0.17435178,117840.0,117830.0,0.20553972]
[1753303315999,0.18283728,117840.0,117830.0,0.20553972]
[1753303316212,0.19060285,117840.0,117830.0,0.20553972]
[1753303316630,0.17273178,117840.0,117830.0,0.20553972]
[1753303317058,0.17219178,117840.0,117830.0,0.20553972]
[1753303317296,0.17219178,117840.0,117830.0,0.23713972]
[1753303317969,0.16425102,117840.0,117830.0,0.23713972]
[1753303318192,0.17219178,117840.0,117830.0,0.27033972]
[1753303318668,0.15726076,117840.0,117830.0,0.69927572]
[1753303320494,0.36663308,117840.0,117830.0,0.00014762]
[1753303320746,0.85826908,117840.0,117830.0,0.00014762]
[1753303320958,0.85381038,117840.0,117830.0,0.00014762]
[1753303322072,1.00381038,117840.0,117830.0,0.00014762]
[1753303322570,1.00581038,117840.0,117830.0,0.00014762]
[1753303322790,1.00781038,117840.0,117830.0,0.00014762]
[1753303323011,0.85649038,117840.0,117830.0,0.00014762]
[1753303323238,0.85449038,117840.0,117830.0,0.00014762]
[1753303323448,1.00637038,117840.0,117830.0,0.00014762]
[1753303323677,1.00837038,117840.0,117830.0,0.00014762]
[1753303323909,1.03729197,117840.0,117830.0,0.00014762]
[1753303324120,0.51849038,117840.0,117830.0,0.17837041]
[1753303324349,0.25580528,117840.0,117830.0,0.20382979]
[1753303324559,0.35991664,117840.0,117830.0,0.20382979]
[1753303324772,0.36840257,117840.0,117830.0,0.20382979]
[1753303325006,0.20159085,117840.0,117830.0,0.20382979]
[1753303325228,0.3598765,117840.0,117830.0,0.20382979]
[1753303325462,0.53808445,117840.0,117830.0,0.1953435]
[1753303325682,0.55979888,117840.0,117830.0,0.17837041]
[1753303326128,0.55979888,117840.0,117830.0,0.18685706]
[1753303326403,0.55131323,117840.0,117830.0,0.18685692]
[1753303326830,0.55131323,117840.0,117830.0,0.17837041]
[1753303327035,0.40151323,117840.0,117830.0,0.18685706]
[1753303327254,0.55127323,117840.0,117830.0,0.19534364]
[1753303327468,0.55127323,117840.0,117830.0,0.18685706]
[1753303327967,0.62078261,117840.0,117830.0,0.17837041]
[1753303328224,0.55127323,117840.0,117830.0,0.17837041]
[1753303328455,0.55127323,117840.0,117830.0,0.18685706]
[1753303328677,0.52107323,117840.0,117830.0,0.19534357]
[1753303329369,0.52107323,117840.0,117830.0,0.18685706]
[1753303329602,0.51258744,117840.0,117830.0,0.18685699]
[1753303330105,0.35135107,117840.0,117830.0,0.20382979]
[1753303330325,0.34286535,117840.0,117830.0,0.20382979]
[1753303330560,0.53804473,117840.0,117830.0,0.1953435]
[1753303330787,0.18731521,117840.0,117830.0,0.24642623]
[1753303331005,0.17882978,117840.0,117830.0,0.70536223]
[1753303331508,0.18731528,117840.0,117830.0,0.27642623]
[1753303331745,0.19380085,117840.0,117830.0,0.27642623]
[1753303331964,0.18531521,117840.0,117830.0,0.27642623]
[1753303332175,0.18539528,117840.0,117830.0,0.27642623]
[1753303332402,0.18339528,117840.0,117830.0,0.27642623]
[1753303332668,0.18439528,117840.0,117830.0,0.27642623]
[1753303332912,0.18339528,117840.0,117830.0,0.27642623]
[1753303334039,0.18339521,117840.0,117830.0,0.27642623]
[1753303334256,0.19188086,117840.0,117830.0,0.27642623]
[1753303334481,0.20036665,117840.0,117830.0,0.21402623]
[1753303334708,0.19188086,117840.0,117830.0,0.21402623]
[1753303334972,0.02538978,117840.0,117830.0,0.70716223]
[1753303335288,0.16672902,117840.0,117830.0,0.70716223]
[1753303335368,0.18315528,117840.0,117830.0,0.70716223]
[1753303336026,0.19164071,117840.0,117830.0,0.27822623]
[1753303336260,0.20012636,117840.0,117830.0,0.70716223]
[1753303336693,0.20861208,117840.0,117830.0,0.70716223]
[1753303336914,0.20012636,117840.0,117830.0,0.70716223]
[1753303337351,0.17466978,117840.0,117830.0,0.70716223]
[1753303341100,0.15722076,117840.0,117830.0,0.70716223]
[1753303342576,0.00794076,117840.0,117830.0,0.70716223]
[1753303342804,0.0937392,117850.0,117840.0,0.25797902]
[1753303343000,0.0937392,117850.0,117840.0,0.68862502]
[1753303343001,0.2424192,117850.0,117840.0,0.68862502]
[1753303343436,0.2424192,117850.0,117840.0,0.25968902]
[1753303343643,0.2424192,117850.0,117840.0,0.68862502]
[1753303344733,0.25090391,117850.0,117840.0,0.68862502]
[1753303344950,0.2424192,117850.0,117840.0,0.68862502]
[1753303345151,0.2444192,117850.0,117840.0,0.68862502]
[1753303347777,0.2444192,117850.0,117840.0,0.25968902]
[1753303348006,0.2444192,117850.0,117840.0,0.68862502]
[1753303348907,0.2444192,117850.0,117840.0,0.68969502]
[1753303349078,0.23619844,117850.0,117840.0,0.77417232]
[1753303349716,0.23519844,117850.0,117840.0,0.77417232]
[1753303350147,0.23519844,117850.0,117840.0,0.77517232]
[1753303351525,0.08679844,117850.0,117840.0,0.77517232]